Cogmind - Beta 11.1 @@@ ROGUE MODE // 2022.05.04 @ 14:39:02 Player: Azken Zutik Result: Self-destructed Performance ------------- Evolutions (6) 3000 Regions Visited (11) 2200 Robots Destroyed (0) 0 Value Destroyed (0) 0 Prototype IDs (0) 0 Alien Tech Used (0) 0 Bonus (3580) 3580 TOTAL SCORE: 8780 Bonus ------- Pacifist 2880 Entered Garrisons 200 Entered DSFs 500 Cogmind --------- Core Integrity 1091/1150 Matter 250/300 Energy 100/100 System Corruption 1% Temperature Cool (0) Movement Core (50) Location -4/Upper Caves Parts ------- > --- POWER (4) -------- (None) > --- PROPULSION (11) -- Nuclear Pulse Array > --- UTILITY (2) ------ Hacking Suite > --- WEAPON (2) ------- (None) > --- INVENTORY (5) ---- Light Treads Wheel Compact Wheel Peak State ------------ > --- POWER ------------ (None) > --- PROPULSION ------- Field Propulsion Drive Field Propulsion Drive Nuclear Pulse Array > --- UTILITY ---------- Hacking Suite > --- WEAPON ----------- (None) > --- INVENTORY -------- Light Treads Wheel Compact Wheel [Rating: 27] Favorites ----------- Power Light Ion Engine Engine Light Ion Engine Propulsion Field Propulsion Drive Treads Light Treads Flight Unit Field Propulsion Drive Utility Hacking Suite Hackware Hacking Suite Weapon None Build | -11 -10 -9 -8 -7 -6 -6 -5 -5 -5 -4 -4 ------- Run | Scr Mat Mat Mat Fac Fac DSF Fac Gar Fac Fac Upp Slots Evolved 12 | . . 2 2 2 2 . 2 . . 2 . Power 3 | . . . . 1 1 . . . . 1 . Propulsion 9 | . . 2 2 1 1 . 2 . . 1 . Utility . | . . . . . . . . . . . . Weapon . | . . . . . . . . . . . . Parts Attached 7 | . . . . . . . . 1 6 . . Power 1 | . . . . . . . . . 1 . . Engine 1 | . . . . . . . . . 1 . . Core . | . . . . . . . . . . . . Reactor . | . . . . . . . . . . . . Propulsion 5 | . . . . . . . . 1 4 . . Treads 1 | . . . . . . . . 1 . . . Leg . | . . . . . . . . . . . . Wheel . | . . . . . . . . . . . . Hover . | . . . . . . . . . . . . Flight 4 | . . . . . . . . . 4 . . Utility 1 | . . . . . . . . . 1 . . Device . | . . . . . . . . . . . . Storage . | . . . . . . . . . . . . Processor . | . . . . . . . . . . . . Hackware 1 | . . . . . . . . . 1 . . Protection . | . . . . . . . . . . . . Artifact . | . . . . . . . . . . . . Weapon . | . . . . . . . . . . . . Energy Gun . | . . . . . . . . . . . . Energy Cannon . | . . . . . . . . . . . . Ballistic Gun . | . . . . . . . . . . . . Ballistic Cannon . | . . . . . . . . . . . . Launcher . | . . . . . . . . . . . . Special Weapon . | . . . . . . . . . . . . Impact Weapon . | . . . . . . . . . . . . Slashing Weapon . | . . . . . . . . . . . . Piercing Weapon . | . . . . . . . . . . . . Special Melee Weapon . | . . . . . . . . . . . . Unidentified Prototypes . | . . . . . . . . . . . . Parts Lost 5 | . . . . . . . . . 3 2 . Power 1 | . . . . . . . . . 1 . . Propulsion 4 | . . . . . . . . . 2 2 . Utility . | . . . . . . . . . . . . Weapon . | . . . . . . . . . . . . Highest Loss Streak 3 | . . . . . . . . . 1 3 . To Critical Strikes . | . . . . . . . . . . . . Average Slot Usage (%) 4 | . . . . . . . . 1 12 15 . Flight 2 | . . . . . . . . . 5 10 . Hackware 1 | . . . . . . . . . 2 5 . Naked Turns 341 | . 38 45 82 65 8 27 26 42 8 . . Heaviest Build 3 | . . . . . . . . . 3 . . Greatest Support 27 | 3 3 3 3 3 3 3 3 20 27 27 . Greatest Overweight (x) . | . . . . . . . . . . . . Average Overweight (x) . | . . . . . . . . . . . . Largest Inventory Capacity 5 | . 5 5 5 5 5 5 5 5 5 5 . Average Capacity 5 | . 5 5 5 5 5 5 5 5 5 5 . Most Carried 5 | . 5 5 5 5 5 5 5 5 4 3 . Average Carried 4 | . 5 5 5 5 5 5 5 4 3 3 . Final Capacity 5 | 5 5 5 5 5 5 5 5 5 5 5 5 Final Carried 5 | 5 5 5 5 5 5 5 5 4 3 3 3 Class Distribution -------------------- 100% | Mutant Dominant Class ---------------- Mutant | -10/Materials Mutant | -9/Materials Mutant | -8/Materials Mutant | -7/Factory Mutant | -6/Factory Mutant | -6/DSF Mutant | -5/Factory Mutant | -5/Garrison Mutant | -5/Factory Mutant | -4/Factory Mutant | -4/Upper Caves Resources | -11 -10 -9 -8 -7 -6 -6 -5 -5 -5 -4 -4 ----------- Run | Scr Mat Mat Mat Fac Fac DSF Fac Gar Fac Fac Upp Matter Collected 200 | 200 . . . . . . . . . . . Remotely . | . . . . . . . . . . . . Salvage Created . | . . . . . . . . . . . . Parts . | . . . . . . . . . . . . Haulers Intercepted . | . . . . . . . . . . . . Recyclers Shooed . | . . . . . . . . . . . . Parts Field Recycled . | . . . . . . . . . . . . Retrieved Matter . | . . . . . . . . . . . . Parts Self-Destructed . | . . . . . . . . . . . . Prevented . | . . . . . . . . . . . . Kills | -11 -10 -9 -8 -7 -6 -6 -5 -5 -5 -4 -4 ------- Run | Scr Mat Mat Mat Fac Fac DSF Fac Gar Fac Fac Upp Combat Hostiles Destroyed . | . . . . . . . . . . . . Classes Destroyed . | . . . . . . . . . . . . Best Kill Streak . | . . . . . . . . . . . . Combat Bots Only . | . . . . . . . . . . . . Max Kills in Single Turn . | . . . . . . . . . . . . Gunslinging . | . . . . . . . . . . . . Exploded . | . . . . . . . . . . . . Melee . | . . . . . . . . . . . . Uniques/NPCs Destroyed . | . . . . . . . . . . . . Combat | -11 -10 -9 -8 -7 -6 -6 -5 -5 -5 -4 -4 -------- Run | Scr Mat Mat Mat Fac Fac DSF Fac Gar Fac Fac Upp Damage Taken 2004 | . 42 84 221 . . 384 . 833 280 160 . Core 1663 | . 42 84 221 . . 384 . 751 122 59 . Absorbed by Shields 46 | . . . . . . . . 46 . . . Core Remaining (%) 69 | 100 83 79 59 100 . 54 . . 12 . . Volleys Fired . | . . . . . . . . . . . . Largest . | . . . . . . . . . . . . Hottest . | . . . . . . . . . . . . Shots Fired . | . . . . . . . . . . . . Gun . | . . . . . . . . . . . . Cannon . | . . . . . . . . . . . . Launcher . | . . . . . . . . . . . . Special . | . . . . . . . . . . . . Kinetic . | . . . . . . . . . . . . Thermal . | . . . . . . . . . . . . Explosive . | . . . . . . . . . . . . Electromagnetic . | . . . . . . . . . . . . Robot Hit Streak . | . . . . . . . . . . . . Robot Miss Streak . | . . . . . . . . . . . . Penetration Max . | . . . . . . . . . . . . Secondary Targets . | . . . . . . . . . . . . Shots Hit Robots . | . . . . . . . . . . . . Core Hits 3 | . . . . . . . . 3 . . . Critical Kills . | . . . . . . . . . . . . Critical Parts Destroyed . | . . . . . . . . . . . . Critical Strikes . | . . . . . . . . . . . . Melee Attacks . | . . . . . . . . . . . . Impact . | . . . . . . . . . . . . Slashing . | . . . . . . . . . . . . Piercing . | . . . . . . . . . . . . Sneak Attacks . | . . . . . . . . . . . . Combat Hostiles . | . . . . . . . . . . . . Follow-up Attacks . | . . . . . . . . . . . . Damage Inflicted 78 | . . . 14 . . . . 48 . 16 . Guns . | . . . . . . . . . . . . Cannons . | . . . . . . . . . . . . Explosions . | . . . . . . . . . . . . Melee . | . . . . . . . . . . . . Ramming 78 | . . . 14 . . . . 48 . 16 . Kinetic . | . . . . . . . . . . . . Thermal . | . . . . . . . . . . . . Explosive . | . . . . . . . . . . . . Electromagnetic . | . . . . . . . . . . . . Impact . | . . . . . . . . . . . . Slashing . | . . . . . . . . . . . . Piercing . | . . . . . . . . . . . . Highest Corruption 1 | . . . . . . . . 1 1 . . Average Corruption 1 | . . . . . . . . 1 1 . . Corruption Purged . | . . . . . . . . . . . . Corruption Blocked . | . . . . . . . . . . . . Effects 3 | . . . . . . . . 1 2 . . Matter Fused 1 | . . . . . . . . . 1 . . Energy Discharges 2 | . . . . . . . . 1 1 . . Overload Shots . | . . . . . . . . . . . . Overflow Damage . | . . . . . . . . . . . . Projectiles . | . . . . . . . . . . . . Explosions . | . . . . . . . . . . . . Melee . | . . . . . . . . . . . . Knockbacks . | . . . . . . . . . . . . Impact . | . . . . . . . . . . . . Kinetic . | . . . . . . . . . . . . Secondary . | . . . . . . . . . . . . Self-Inflicted Damage 36 | . . . 6 . . . . 22 . 8 . Shots . | . . . . . . . . . . . . Rammed 15 | . . . 2 . . . . 12 . 1 . Targets Rammed 15 | . . . 2 . . . . 12 . 1 . Kicked . | . . . . . . . . . . . . Crushed . | . . . . . . . . . . . . Highest Temperature 5 | . . . 5 . . . . . . . . Average Temperature 5 | . . . 5 . . . . . . . . Received Heat Transfer 267 | . 24 . 117 . . . . 54 54 18 . Siege Activations . | . . . . . . . . . . . . Robots Corrupted . | . . . . . . . . . . . . Combat Hostiles . | . . . . . . . . . . . . Parts Fried . | . . . . . . . . . . . . Impact Corruptions . | . . . . . . . . . . . . Robots Melted . | . . . . . . . . . . . . Combat Hostiles . | . . . . . . . . . . . . Parts Melted . | . . . . . . . . . . . . Heat Transferred . | . . . . . . . . . . . . Parts Sabotaged . | . . . . . . . . . . . . Parts Stolen . | . . . . . . . . . . . . Parts Stripped . | . . . . . . . . . . . . Power Chain Reactions . | . . . . . . . . . . . . Missiles Intercepted . | . . . . . . . . . . . . Alert | -11 -10 -9 -8 -7 -6 -6 -5 -5 -5 -4 -4 ------- Run | Scr Mat Mat Mat Fac Fac DSF Fac Gar Fac Fac Upp Peak Influence 149 | . 24 48 149 91 44 30 30 36 81 49 . Initial 67 | . . 9 20 67 44 30 15 21 18 34 . Average 38 | . 15 27 64 77 44 30 19 26 22 36 . Maximum Alert Level . | . . . . . . . . . . . . Low Security (%) 100 | . 100 100 100 100 100 100 100 100 100 100 . Level 1 . | . . . . . . . . . . . . Level 2 . | . . . . . . . . . . . . Level 3 . | . . . . . . . . . . . . Level 4 . | . . . . . . . . . . . . Level 5 . | . . . . . . . . . . . . High Security . | . . . . . . . . . . . . Max Security . | . . . . . . . . . . . . Squads Dispatched 8 | . 2 . 2 . . 1 . . 2 1 . Investigation 3 | . 1 . 1 . . . . . . 1 . Extermination . | . . . . . . . . . . . . Reinforcement 5 | . 1 . 1 . . 1 . . 2 . . Assault . | . . . . . . . . . . . . Garrison . | . . . . . . . . . . . . Intercept . | . . . . . . . . . . . . Searches Triggered . | . . . . . . . . . . . . Construction Impeded . | . . . . . . . . . . . . Haulers Reinforced . | . . . . . . . . . . . . Active Scanning Responses . | . . . . . . . . . . . . Cargo Convoy Interrupts . | . . . . . . . . . . . . Stealth | -11 -10 -9 -8 -7 -6 -6 -5 -5 -5 -4 -4 --------- Run | Scr Mat Mat Mat Fac Fac DSF Fac Gar Fac Fac Upp Distress Signals 5 | . 1 1 1 . . . . . 2 . . Communications Jammed . | . . . . . . . . . . . . Distress Signals . | . . . . . . . . . . . . Times Spotted 59 | . 4 7 18 1 . 4 1 9 10 5 . Peak Tracking Total 17 | . 6 7 17 1 . 4 1 9 6 5 . Tactical Retreats 2 | . . . 1 . . . . . 1 . . Traps | -11 -10 -9 -8 -7 -6 -6 -5 -5 -5 -4 -4 ------- Run | Scr Mat Mat Mat Fac Fac DSF Fac Gar Fac Fac Upp Traps Triggered 5 | . 1 . 1 . . 1 . 1 1 . . Indirectly . | . . . . . . . . . . . . Trap Hack Attempts . | . . . . . . . . . . . . Triggered . | . . . . . . . . . . . . Disarmed . | . . . . . . . . . . . . Reprogrammed . | . . . . . . . . . . . . Reused . | . . . . . . . . . . . . Traps Extracted . | . . . . . . . . . . . . Installed . | . . . . . . . . . . . . Triggered . | . . . . . . . . . . . . Machines | -11 -10 -9 -8 -7 -6 -6 -5 -5 -5 -4 -4 ---------- Run | Scr Mat Mat Mat Fac Fac DSF Fac Gar Fac Fac Upp Machines Disabled . | . . . . . . . . . . . . Max in Single Turn . | . . . . . . . . . . . . Machines Sabotaged . | . . . . . . . . . . . . Garrisons Compromised . | . . . . . . . . . . . . Overloaded Fab Kills . | . . . . . . . . . . . . Hacking | -11 -10 -9 -8 -7 -6 -6 -5 -5 -5 -4 -4 --------- Run | Scr Mat Mat Mat Fac Fac DSF Fac Gar Fac Fac Upp Machines Accessed 8 | . 1 1 1 1 1 . 1 . 1 1 . Terminals 7 | . 1 1 1 1 1 . . . 1 1 . Fabricators . | . . . . . . . . . . . . Repair Stations . | . . . . . . . . . . . . Recycling Units . | . . . . . . . . . . . . Scanalyzers . | . . . . . . . . . . . . Garrison Access 1 | . . . . . . . 1 . . . . Total Hacks 15 | . 3 2 3 1 1 . 1 . 1 3 . Successful 7 | . 1 1 1 1 1 . 1 . 1 . . Failed 8 | . 2 1 2 . . . . . . 3 . Catastrophic 4 | . 1 1 . . . . . . . 2 . Database Lockouts . | . . . . . . . . . . . . Manual 12 | . 3 2 3 1 . . . . . 3 . Terminals 14 | . 3 2 3 1 1 . . . 1 3 . Fabricators . | . . . . . . . . . . . . Repair Stations . | . . . . . . . . . . . . Recycling Units . | . . . . . . . . . . . . Scanalyzers . | . . . . . . . . . . . . Garrison Access 1 | . . . . . . . 1 . . . . Terminal Hacks 6 | . 1 1 1 1 1 . . . 1 . . Open DSF 1 | . . . . . 1 . . . . . . Level Access Points 5 | . 1 1 1 1 . . . . 1 . . Fabricator Hacks . | . . . . . . . . . . . . Repair Station Hacks . | . . . . . . . . . . . . Recycling Unit Hacks . | . . . . . . . . . . . . Scanalyzer . | . . . . . . . . . . . . Garrison Access Hacks 1 | . . . . . . . 1 . . . . Unlock Access 1 | . . . . . . . 1 . . . . Unauthorized Hacks . | . . . . . . . . . . . . Terminals . | . . . . . . . . . . . . Fabricators . | . . . . . . . . . . . . Repair Stations . | . . . . . . . . . . . . Recycling Units . | . . . . . . . . . . . . Scanalyzers . | . . . . . . . . . . . . Garrison Access . | . . . . . . . . . . . . Data Cores Recovered . | . . . . . . . . . . . . Used . | . . . . . . . . . . . . Hacking Detections 4 | . 1 1 1 . . . . . . 1 . Full Trace Events 3 | . 1 1 . . . . . . . 1 . Feedback Events . | . . . . . . . . . . . . Feedback Blocked . | . . . . . . . . . . . . Robot Schematics Acquired . | . . . . . . . . . . . . Robots Built . | . . . . . . . . . . . . Authchips . | . . . . . . . . . . . . Time . | . . . . . . . . . . . . Total Robot Build Rating . | . . . . . . . . . . . . Part Schematics Acquired . | . . . . . . . . . . . . Parts Built . | . . . . . . . . . . . . Authchips . | . . . . . . . . . . . . Time . | . . . . . . . . . . . . Total Part Build Rating . | . . . . . . . . . . . . Parts Repaired . | . . . . . . . . . . . . Time . | . . . . . . . . . . . . Parts Recycled . | . . . . . . . . . . . . Recycled Matter . | . . . . . . . . . . . . Retrieved Matter . | . . . . . . . . . . . . Retrieved Components . | . . . . . . . . . . . . Parts Scanalyzed . | . . . . . . . . . . . . Part Schematics Acquired . | . . . . . . . . . . . . Parts Damaged . | . . . . . . . . . . . . Bothacking | -11 -10 -9 -8 -7 -6 -6 -5 -5 -5 -4 -4 ------------ Run | Scr Mat Mat Mat Fac Fac DSF Fac Gar Fac Fac Upp Used RIF Installer . | . . . . . . . . . . . . Robots Hacked . | . . . . . . . . . . . . Non-combat . | . . . . . . . . . . . . Combat . | . . . . . . . . . . . . Robot Hacks Applied . | . . . . . . . . . . . . Relay Couplers Released . | . . . . . . . . . . . . Fabnet Peak Effective % . | . . . . . . . . . . . . Robots Rewired . | . . . . . . . . . . . . Allies Hacked . | . . . . . . . . . . . . Hacks Repelled . | . . . . . . . . . . . . Allies | -11 -10 -9 -8 -7 -6 -6 -5 -5 -5 -4 -4 -------- Run | Scr Mat Mat Mat Fac Fac DSF Fac Gar Fac Fac Upp Total Allies . | . . . . . . . . . . . . Largest Group . | . . . . . . . . . . . . Highest-Rated Group . | . . . . . . . . . . . . Highest-Rated Ally . | . . . . . . . . . . . . Total Orders . | . . . . . . . . . . . . Ally Attacks . | . . . . . . . . . . . . Total Damage . | . . . . . . . . . . . . Kills . | . . . . . . . . . . . . Allies Corrupted . | . . . . . . . . . . . . Allies Melted . | . . . . . . . . . . . . Intel | -11 -10 -9 -8 -7 -6 -6 -5 -5 -5 -4 -4 ------- Run | Scr Mat Mat Mat Fac Fac DSF Fac Gar Fac Fac Upp Robot Analysis Total . | . . . . . . . . . . . . Derelict Logs Recovered . | . . . . . . . . . . . . Drone Launches . | . . . . . . . . . . . . Drone Recoveries . | . . . . . . . . . . . . Exploration | -11 -10 -9 -8 -7 -6 -6 -5 -5 -5 -4 -4 ------------- Run | Scr Mat Mat Mat Fac Fac DSF Fac Gar Fac Fac Upp Turns Passed 538 | . 38 45 82 65 8 27 26 63 123 61 . Spaces Moved 1077 | 1 76 89 160 130 16 53 51 93 252 156 . Core 766 | 1 76 89 160 130 16 53 51 92 98 . . Treads 1 | . . . . . . . . 1 . . . Legs . | . . . . . . . . . . . . Wheels . | . . . . . . . . . . . . Hover . | . . . . . . . . . . . . Flight 310 | . . . . . . . . . 154 156 . Fastest Speed 37 | 50 50 50 50 50 50 50 50 50 37 37 . Average Speed 47 | 50 50 50 50 50 50 50 50 51 45 38 . Slowest Speed 160 | 50 50 50 50 50 50 50 50 160 50 40 . Overloaded Moves . | . . . . . . . . . . . . Propulsion Burnouts . | . . . . . . . . . . . . Robots Hopped 7 | . . . . . . . . . 4 3 . Cave-ins Triggered . | . . . . . . . . . . . . Exploration Rate (%) 17 | 2 24 16 30 6 1 73 3 33 13 8 1 Regions Visited 11 Branch Regions 1 Pre-discovered Areas . | . . . . . . . . . . . . Known Exits Taken 7 | . 1 1 1 1 1 . 1 . 1 . . Unknown Exits Taken 2 | 1 . . . . . . . . . 1 . Scrap Searched . | . . . . . . . . . . . . Spaces Dug . | . . . . . . . . . . . . Terrain Destroyed . | . . . . . . . . . . . . Melee . | . . . . . . . . . . . . Projectile . | . . . . . . . . . . . . AOE . | . . . . . . . . . . . . Terrain Rammed . | . . . . . . . . . . . . Walls Destroyed . | . . . . . . . . . . . . Machines Disabled . | . . . . . . . . . . . . Actions | -11 -10 -9 -8 -7 -6 -6 -5 -5 -5 -4 -4 --------- Run | Scr Mat Mat Mat Fac Fac DSF Fac Gar Fac Fac Upp Total 1084 | . 75 88 161 129 15 52 51 107 253 153 . Wait . | . . . . . . . . . . . . Move 1054 | . 75 88 159 129 15 52 51 92 243 150 . Hop 7 | . . . . . . . . . 4 3 . Pick Up . | . . . . . . . . . . . . Fast Attach 5 | . . . . . . . . . 5 . . Attach 2 | . . . . . . . . 1 1 . . Detach . | . . . . . . . . . . . . Swap . | . . . . . . . . . . . . Drop . | . . . . . . . . . . . . Fire . | . . . . . . . . . . . . Melee . | . . . . . . . . . . . . Ram 14 | . . . 2 . . . . 12 . . . Kick . | . . . . . . . . . . . . Crush . | . . . . . . . . . . . . Escape Stasis 2 | . . . . . . . . 2 . . . Rewire . | . . . . . . . . . . . . Trap . | . . . . . . . . . . . . Miscellaneous . | . . . . . . . . . . . . Route ------- -11/Scrapyard -10/Materials (discovered 4 exits: *Mat x3 / [*Min]) -9/Materials (discovered 3 exits: *Mat x3) -8/Materials (discovered 3 exits: *Fac x3) -7/Factory (discovered 4 exits: *Fac x4) -6/Factory -6/DSF -5/Factory -5/Garrison -5/Factory (discovered 4 exits: *Fac x4) -4/Factory -4/Upper Caves History --------- Turn | Location | Event 1 | -11/Scrapyard | Released all parts (6) 1 | -11/Scrapyard | Discovered new exit (range 0) 1 | -11/Scrapyard | Entered Materials 10 | -10/Materials | Identified exit to Materials 21 | -10/Materials | Discovered new exit (range 16) 39 | -10/Materials | Entered another Materials area 39 | -9/Materials | Evolved 2 slots: Propulsion x2 45 | -9/Materials | Identified exit to Materials 84 | -9/Materials | Entered another Materials area 84 | -8/Materials | Evolved 2 slots: Propulsion x2 87 | -8/Materials | Identified exit to Factory 166 | -8/Materials | Entered Factory 166 | -7/Factory | Evolved 2 slots: Power x1, Propulsion x1 206 | -7/Factory | Identified exit to Factory 231 | -7/Factory | Entered another Factory area 231 | -6/Factory | Evolved 2 slots: Power x1, Propulsion x1 238 | -6/Factory | Identified exit to DSF 239 | -6/Factory | Entered DSF 256 | -6/DSF | Additional patrols routed to DSF 259 | -6/DSF | Discovered new exit (range 15) 266 | -6/DSF | Entered Factory 266 | -5/Factory | Evolved 2 slots: Propulsion x2 292 | -5/Factory | Identified exit to Garrison 292 | -5/Factory | Entered Garrison 305 | -5/Garrison | Build established: Mutant 328 | -5/Garrison | Core integrity fell below 50% 330 | -5/Garrison | Triggered checkpoint 348 | -5/Garrison | Discovered new exit (range 15) 355 | -5/Garrison | Entered Factory 400 | -5/Factory | Identified exit to Factory 450 | -5/Factory | Core integrity fell below 20% 478 | -5/Factory | Entered another Factory area 478 | -4/Factory | Evolved 2 slots: Power x1, Propulsion x1 503 | -4/Factory | Spotted B-86 Titan 532 | -4/Factory | Discovered new exit (range 15) 538 | -4/Factory | Lost 3 parts (1p2n) 539 | -4/Factory | Entered Upper Caves 539 | -4/Upper Caves | Self-destructed Last Messages --------------- 00473_ Slug penetrates Wall. 00476_ Lgt. Ion Engine destroyed. 00476_ Slug penetrates Wall. 00477_ Acquired Nuclear Pulse Array. PARAMETERS=POWER+1,PROPULSION+1 LOCATION=FACTORY GOAL=ESCAPE 00484_ ALERT: All DSF locations entering lockdown mode. 00504_ Field Propulsion Drive destroyed. 00504_ Critical hit (Blast). 00506_ Connecting with Terminal... 00506_ ALERT: Suspicious activity at Terminal F002. Dispatching Investigation squad. 00507_ Field Propulsion Drive destroyed. 00517_ K-01 Serf cleans the DSF Access. 00532_ EXIT=FOUND 00539_ Slammed into W-44 Eye. 00539_ Destabilizing: System corrupted (+1). LOCATION=UNKNOWN GOAL=ESCAPE Map ----- +----------------------------------------------------+ | | | | | | | | | | | ?????????????????????????????????????????????????? | | ?????????????????????????????????????????????????? | | ?????????????????????????????????????????????????? | | ?????????????????????????????????????????????????? | | ?????????????????????????????????????????????????? | | ?????????????????????????????????????????????????? | | ?????????????????????????????????????????????????? | | ?????????????????????????????????????????????????? | | ?????????????????????????????????????????????????? | | ?????????????????????????????????????????????????? | | ?????????????????????????????????????????????????? | | ?????????????????????##"?????????????????????????? | | ????????????????????##""?????????????????????????? | | ????????????????????#"""#????????????????????????? | | ????????????????????# ""##??????????????????????? | | ???????????????????## ###????????????????????? | | ???????????????????? #????????????????????? | | ????????????????????? ?????????????????????? | | ??????????????????????# #?????????????????????? | | ???????????????????????# #?????????????????????? | | ???????????????????????# @ #?????????????????????? | | ???????????????????????## #???????????????????? | | ????????????????????????## #???????????????????? | | ?????????????????????????? #???????????????????? | | ??????????????????????????# #???????????????????? | | ??????????????????????????? #???????????????????? | | ??????????????????????????? #???????????????????? | | ???????????????????????????? #???????????????????? | | ???????????????????????????? ???????????????????? | | ???????????????????????????? #???????????????????? | | ?????????????????????????????#???????????????????? | | ?????????????????????????????????????????????????? | | ?????????????????????????????????????????????????? | | ?????????????????????????????????????????????????? | | ?????????????????????????????????????????????????? | | ?????????????????????????????????????????????????? | | ?????????????????????????????????????????????????? | | ?????????????????????????????????????????????????? | | ?????????????????????????????????????????????????? | | ?????????????????????????????????????????????????? | | ?????????????????????????????????????????????????? | | ?????????????????????????????????????????????????? | | ?????????????????????????????????????????????????? | | ?????????????????????????????????????????????????? | | ?????????????????????????????????????????????????? | +----------------------------------------------------+ Best States ------------- Heat Dissipation 43 Energy Generation 10 Energy Capacity 125 Matter Stores 300 Matter Capacity 300 Sight Range 16 Terrain Scan Density 10 Evasion (%) 62 Offensive Hacking 10 Item Schematics ----------------- None Robot Schematics ------------------ None Fabricated ------------ Nothing Alien Tech Used ----------------- None Achievements -------------- None Challenges ------------ None Game ------ Seed TransportChainDeconstructor Manual? 0 Play Time 00:12:11 Cumulative 342.8 hours Start 2022.05.04 @ 14:26:57 End 2022.05.04 @ 14:39:02 Sessions 1 Manual Loads 0 Difficulty Rogue Special Mode None Game No. 119 Rogue 119 Adventurer 0 Explorer 0 Win Type - Total 7 Types 3/1/0/1/2/0/0/0/0 Lore% 66 Gallery% 79 Achievement% 69 Wizard Run 0 Options --------- ASCII 0 Keyboard 0 Movement Mouse Keybinds 0 Fullscreen 0 Font 28/SmallcapsGlow Map View 72x54 Tactical HUD 1 Map Filters NONE Filters NONE Steam 1 RUN: 4ffefdc1-22b3-4168-bb8e-15e9b7a74f73